fUST/lending_fUST_20240620
["ID","MTS","AMOUNT","RATE_DAILY","PERIOD"]
[329956069,1718867254913,-500.0,0.000474,120]
[329956070,1718867254932,-500.0,0.000474,120]
[329956071,1718867254952,-500.0,0.000474,120]
[329956072,1718867254972,-500.0,0.000474,120]
[329956073,1718867254991,-500.0,0.000474,120]
[329956074,1718867255010,-500.0,0.000474,120]
[329956075,1718867255029,-360.29,0.000474,120]
[329956076,1718867255049,-160.00141462,0.00047498,4]
[329956077,1718867255071,-154.85298965,0.00047498,4]
[329956078,1718867255093,-512.98664281,0.00047498,4]
[329956079,1718867255115,-2422.44441829,0.00047498,4]
[329956080,1718867255136,-1757.35733524,0.00047507,20]
[329956081,1718867255157,-17916.87,0.00047535,3]
[329956082,1718867255177,-21500.24,0.00047545,3]
[329956083,1718867255197,-154.82968734,0.00047553,4]
[329956084,1718867255216,-283.55287723,0.00047553,4]
[329956085,1718867255236,-158.31830716,0.00047553,4]
[329956086,1718867255256,-154.82968734,0.00047554,4]
[329956087,1718867255276,-662.40027232,0.00047554,4]
[329956088,1718867255296,-262.37089328,0.00047554,4]
[329956089,1718867255315,-1333.65650093,0.00047555,4]
[329956090,1718867255335,-279.96352311,0.00047555,4]
[329956091,1718867255354,-6337.493796,0.00047555,4]
[329956092,1718867255376,-195.31628,0.00047555,4]
[329956093,1718867255396,-154.82968734,0.00047555,4]
[329956094,1718867255418,-160.53303812,0.00047566,30]
[329956095,1718867255438,-24556.20775878,0.00047567,5]
[329956097,1718867319116,7003.0,0.00025,120]
[329956098,1718867351101,-151.75340781,0.00025618,2]
[329956099,1718867351128,-171.70713147,0.00025799,2]
[329956100,1718867351156,-171.70713147,0.00025821,2]
[329956101,1718867351182,-171.70713147,0.00025959,2]
[329956102,1718867351208,-171.70713147,0.00026286,2]
[329956103,1718867351232,-153.30180998,0.00026397,2]
[329956104,1718867351262,-171.70713147,0.00026537,2]
[329956105,1718867356205,181.51786119,0.00025,2]
[329956106,1718867376212,181.51786119,0.00025,2]
[329956107,1718867392329,199.51846634,0.00025,2]
[329956108,1718867429084,158.38870192,9.999e-05,2]
[329956161,1718867432766,-0.89043332,0.00025,2]
[329956163,1718867432775,-157.37199406,0.00026931,2]
[329956165,1718867432785,-151.82105199,0.00027104,2]
[329956167,1718867432794,-152.87349199,0.00027249,2]
[329956169,1718867432805,-151.82105199,0.00027372,2]
[329956171,1718867432815,-160.0,0.00027376,30]
[329956172,1718867432826,-158.86765469,0.0002773,2]
[329956173,1718867432836,-171.70713147,0.00028014,2]
[329956174,1718867432845,-171.70713147,0.000284,2]
[329956175,1718867432854,-151.75340781,0.00028983,2]
[329956176,1718867432863,-300.0,0.00028997,2]
[329956177,1718867432872,-289.56259362,0.00028998,2]
[329956178,1718867432881,-592.75686376,0.00028998,2]
[329956179,1718867432890,-342.1760653,0.00028998,2]
[329956180,1718867432899,-209.42227133,0.00028998,2]
[329956181,1718867432908,-158.51809267,0.00028998,2]
[329956182,1718867432918,-2566.74173733,0.00028998,2]
[329956183,1718867432928,-1581.77175318,0.00028998,7]
[329956184,1718867432937,-687.11689634,0.00028998,2]
[329956185,1718867432946,-159.75452184,0.00028998,2]
[329956186,1718867432955,-216.27004388,0.00028998,2]
[329956188,1718867432964,-1101.97495994,0.00028998,2]
[329956190,1718867432974,-154.84515485,0.00028998,2]
[329956192,1718867432983,-2039.58997088,0.00028998,2]
[329956194,1718867432992,-494.77760321,0.00028998,2]
[329956196,1718867433001,-212.34556694,0.00028998,2]
[329956198,1718867433010,-168.98328049,0.00028998,2]
[329956200,1718867433019,-521.85075958,0.00028998,2]
[329956202,1718867433028,-7346.55221367,0.00028998,2]
[329956204,1718867433038,-154.98232569,0.00028998,2]
[329956206,1718867433049,-7338.42712531,0.00028998,2]
[329956209,1718867433070,-4614.02985246,0.00028998,2]
[329956211,1718867433079,-1985.85162039,0.00028999,2]
[329956213,1718867433089,-12153.73440394,0.00029,30]
[329956215,1718867433098,-154.79876161,0.000292,2]
[329956217,1718867433107,-708.9,0.00029614,15]
[329956219,1718867433118,-171.70713147,0.0002975,2]
[329956221,1718867433128,-157.37199406,0.0002986,2]
[329956223,1718867433138,-350.22485764,0.0003,30]
[329956225,1718867433147,-223.90250004,0.0003,4]
[329956227,1718867433156,-154.79876161,0.0003,4]
[329956230,1718867433168,-470.04995089,0.0003,4]
[329956232,1718867433178,-171.70713147,0.00031005,7]
[329956234,1718867433187,-171.70713147,0.00031092,7]
[329956236,1718867433198,-420.0,0.00031285,2]
[329956238,1718867433208,-151.82105199,0.00031573,7]
[329956240,1718867433217,-151.82105199,0.00031603,7]
[329956242,1718867433227,-171.70713147,0.00031842,7]
[329956244,1718867433236,-153.30180999,0.00032032,7]
[329956246,1718867433246,-151.75340781,0.0003211,7]
[329956248,1718867433256,-151.82105199,0.00032926,7]
[329956249,1718867433267,-770.08,0.00033,23]
[329956251,1718867433276,-151.82105199,0.00033168,7]
[329956253,1718867433285,-171.70713147,0.00033265,7]
[329956255,1718867433296,-157.37199406,0.00033308,7]
[329956257,1718867433307,-171.70713147,0.00033531,7]
[329956260,1718867433316,-280.51902353,0.00033739,7]
[329956262,1718867433326,-316.48782207,0.00033739,7]
[329956263,1718867433335,-500.0,0.00033739,7]
[329956266,1718867433345,-208.12537661,0.00033739,7]
[329956268,1718867433355,-708.9,0.0003374,15]
[329956269,1718867433364,-171.70713147,0.00033964,7]
[329956271,1718867433374,-151.82105199,0.00034103,7]
[329956274,1718867433383,-152.87349199,0.0003459,7]
[329956276,1718867433393,-171.70713147,0.00034754,7]
[329956278,1718867433402,-151.82105199,0.00034859,7]
[329956279,1718867433411,-4727.60564741,0.00035,4]
[329956281,1718867433421,-154.79876161,0.00035,4]
[329956283,1718867433430,-151.82105199,0.00035267,7]
[329956285,1718867433439,-171.70713147,0.00036107,7]
[329956287,1718867433448,-152.87349199,0.00036641,7]
[329956289,1718867433457,-171.70713147,0.00037046,7]
[329956291,1718867433466,-171.70713147,0.00037446,7]
[329956293,1718867433475,-708.9,0.00037866,15]
[329956295,1718867433484,-171.70713147,0.0003798,7]
[329956297,1718867433493,-1547.30677906,0.00038,120]
[329956299,1718867433502,-151.82105199,0.00038711,7]
[329956301,1718867433512,-171.70713147,0.00038739,7]
[329956304,1718867433521,-593.0,0.000394,2]
[329956306,1718867433532,-171.70713147,0.00039668,7]
[329956308,1718867433541,-1751.0,0.00039712,2]
[329956310,1718867433551,-500.000001,0.0004,7]
[329956312,1718867433560,-396.83376632,0.0004,60]
[329956314,1718867433569,-864.57,0.0004,120]
[329956316,1718867433578,-312.99543347,0.0004,120]
[329956318,1718867433588,-808.88059479,0.0004,2]
[329956320,1718867433597,-151.75340781,0.00040931,30]
[329956322,1718867433605,-171.70713147,0.00040973,30]
[329956324,1718867433615,-151.82105199,0.00041409,30]
[329956326,1718867433624,-708.9,0.00041992,31]
[329956328,1718867433632,-171.70713147,0.00042053,30]
[329956330,1718867433642,-1963.29851572,0.000425,30]
[329956332,1718867433650,-794.881,0.00042712,2]
[329956334,1718867433660,-171.70713147,0.00043342,30]
[329956336,1718867433669,-171.70713147,0.00043986,30]
[329956338,1718867433680,-171.70713147,0.00044059,30]
[329956340,1718867433689,-3350.666,0.000445,70]
[329956342,1718867433699,-157.37199408,0.00044729,30]
[329956344,1718867433709,-814.29805521,0.000449,106]
[329956346,1718867433718,-708.9,0.00046118,31]
[329956348,1718867433727,-160.0,0.000463,34]
[329956350,1718867433737,-160.0,0.000463,34]
[329956352,1718867433749,-160.0,0.000463,34]
[329956354,1718867433758,-10000.0,0.000465,80]
[329956356,1718867433767,-155.12159332,0.00046683,4]
[329956358,1718867433777,-500.0,0.0004671,12]
[329956360,1718867433787,-171.70713147,0.00046823,30]
[329956362,1718867433797,-171.70713147,0.00046906,30]
[329956364,1718867433807,-171.70713147,0.0004715,30]
[329956366,1718867433816,-151.82105199,0.00047159,30]
[329956367,1718867433827,-151.0,0.000474,14]
[329956369,1718867433837,-151.75340781,0.00047465,30]
[329956371,1718867433846,-182.95411937,0.00047467,2]
[329956374,1718867433855,-182.95411935,0.00047492,2]
[329956375,1718867433864,-171.7071317,0.0004751,30]
[329956378,1718867433874,-182.95411935,0.00047517,2]
[329956380,1718867433883,-182.95411935,0.00047542,2]
[329956381,1718867433892,-151.0,0.00047545,14]
[329956384,1718867433901,-1948.47264683,0.00047557,3]
[329956845,1718867439019,-2893.67,0.00047555,3]
[329956846,1718867439030,-4166.89,0.00047557,3]
[329956847,1718867439040,-3472.41,0.00047557,3]
[329956848,1718867439050,-155.16680121,0.00047565,4]
[329956849,1718867439065,-2315.60534793,0.00047565,4]
[329956850,1718867439075,-1462.28459934,0.00047565,4]
[329956851,1718867439085,-12251.38597975,0.00047567,5]
[329956852,1718867439095,-2000.0,0.00047567,2]
[329956853,1718867439105,-313.457465,0.00047567,14]
[329956854,1718867439115,-313.457465,0.00047567,14]
[329956855,1718867439124,-151.0,0.00047567,14]
[329956856,1718867439135,-614.66409484,0.00047567,4]
[329956857,1718867439145,-416.82703639,0.00047567,4]
[329956858,1718867439155,-182.95411935,0.00047567,2]
[329956859,1718867439164,-152.30846846,0.000476,30]
[329956860,1718867439174,-1738.45,0.00047666,7]
[329956861,1718867439184,-56966.09714784,0.00047667,120]
[329956862,1718867439290,-67265.94254894,0.00047667,120]
[329956971,1718867444374,-143219.18301,0.00047667,120]
[329956976,1718867448453,-3.0,0.000292,2]
[329956979,1718867517513,378.12915927,0.00015,2]
[329956980,1718867517535,258.91559183,0.00015,2]
[329956981,1718867517556,250.84829947,0.00015,2]
[329956982,1718867517578,158.52611222,0.00015,2]
[329956998,1718868199485,860.0,0.00026,60]
[329956999,1718868427126,-163.700622,0.00021096,2]
[329957000,1718868427149,-1693.82182219,0.00021794,2]
[329957001,1718868427169,-990.8649478,0.00021795,2]
[329957002,1718868427292,-638.54324739,0.00022885,2]
[329957003,1718868427313,-950.55985992,0.000239,2]
[329957004,1718868427333,-166.666666,0.00024117,2]
[329957005,1718868427353,-279.253237,0.00024132,2]
[329957006,1718868427373,-166.666666,0.00025213,2]
[329957007,1718868427392,-152.73828047,0.00025691,2]
[329957008,1718868427412,-200.69112589,0.00026255,2]
[329957009,1718868427433,-1038.09963236,0.00026287,2]
[329957010,1718868427453,-166.666666,0.00026309,2]
[329957011,1718868427474,-31018.51656728,0.00026387,2]
[329957012,1718868427495,-479.5238212,0.00026387,2]
[329957013,1718868427515,-440.15650611,0.00026387,2]
[329957014,1718868427538,-24890.0,0.00026388,2]
[329957015,1718868427559,-200.69112589,0.00026565,2]
[329957016,1718868427579,-166.666666,0.00027405,2]
[329957017,1718868427599,-157.93357175,0.00027507,2]
[329957018,1718868427619,-157.93357175,0.00027603,2]
[329957019,1718868427638,-157.93357175,0.00027785,2]
[329957020,1718868427658,-153.30180998,0.00027847,2]
[329957021,1718868427678,-152.73828047,0.00028027,2]
[329957022,1718868427697,-151.62689059,0.00028126,2]
[329957023,1718868427716,-157.93357175,0.0002815,2]
[329957024,1718868427738,-1235.86371161,0.00028363,2]
[329957025,1718868427757,-157.93357175,0.00028587,2]
[329957026,1718868427775,-152.73828047,0.00028727,2]
[329957027,1718868427795,-950.55985992,0.000289,2]
[329957028,1718868427815,-7099.1266674,0.00029,30]
[329957029,1718868427834,-157.93357175,0.00029047,2]
[329957030,1718868427854,-256.1988526,0.000292,2]
[329957031,1718868427874,-154.79876161,0.000292,2]
[329957032,1718868427894,-151.28629382,0.00029393,2]
[329957033,1718868427913,-151.62689059,0.0002961,2]
[329957034,1718868427934,-620.3,0.00029727,15]
[329957035,1718868427955,-223.90250004,0.0003,4]
[329957036,1718868427974,-350.22485764,0.0003,30]
[329957037,1718868427994,-200.69112589,0.00030197,7]
[329957038,1718868428014,-157.93357175,0.00030614,7]
[329957039,1718868428034,-163.700622,0.00030753,2]
[329957040,1718868428058,-567.1728751,0.00031104,2]
[329957041,1718868428078,-200.69112589,0.00031341,7]
[329957042,1718868428099,-200.69112589,0.00032498,7]
[329957043,1718868428119,-157.93357175,0.0003258,7]
[329957044,1718868428142,-151.28629382,0.00032624,7]
[329957045,1718868428162,-153.0,0.00032789,2]
[329957046,1718868428181,-205.6359469,0.00032851,2]
[329957047,1718868428202,-205.6359469,0.00032851,2]
[329957048,1718868428224,-585.2894804,0.00032851,2]
[329957049,1718868428243,-329.7798381,0.00032851,2]
[329957050,1718868428263,-317.9904952,0.00032851,2]
[329957051,1718868428283,-409.5922211,0.00032851,2]
[329957052,1718868428303,-153.0,0.00032851,2]
[329957053,1718868428322,-153.0,0.00032851,2]
[329957054,1718868428342,-306.8260083,0.00032851,2]
[329957055,1718868428362,-582.99366,0.00033,16]
[329957056,1718868429713,-1235.86371159,0.00033164,2]
[329957057,1718868429740,-200.69112589,0.00033551,7]
[329957058,1718868429771,-620.3,0.00033843,15]
[329957059,1718868429793,-950.55985992,0.000339,2]
[329957060,1718868429814,-156.79447029,0.00034416,7]
[329957061,1718868429835,-151.07633852,0.0003499,7]
[329957062,1718868429858,-154.79876161,0.00035,4]
[329957063,1718868429880,-152.73828047,0.00035032,7]
[329957064,1718868429902,-200.69112589,0.00035256,7]
[329957065,1718868429923,-205.0,0.0003598,4]
[329957066,1718868429945,-783.20721978,0.0003598,4]
[329957067,1718868429967,-6755.06835235,0.00035983,5]
[329957068,1718868429991,-657.57,0.00035999,3]
[329957069,1718868430014,-1852.29,0.00035999,3]
[329957070,1718868430036,-2611.31,0.00036009,3]
[329957071,1718868430062,-394.53105267,0.00036018,30]
[329957072,1718868430083,-351.67522007,0.00036018,4]
[329957073,1718868430105,-158.16139992,0.00036018,4]
[329957074,1718868430128,-1020.68693728,0.00036018,4]
[329957075,1718868430150,-775.00623425,0.00036019,4]
[329957076,1718868430171,-191.8060336,0.00036019,4]
[329957077,1718868430191,-156.56028287,0.00036019,4]
[329957078,1718868430212,-252.36203016,0.00036019,4]
[329957079,1718868430235,-705.77184118,0.00036019,4]
[329957080,1718868430254,-164.98107495,0.00036019,4]
[329957081,1718868430275,-155.54849025,0.00036019,4]
[329957082,1718868430296,-948.21053722,0.00036019,4]
[329957083,1718868430316,-297.56749499,0.00036019,4]
[329957084,1718868430337,-239.397701,0.00036019,2]
[329957085,1718868430357,-155.69012832,0.00036019,4]
[329957086,1718868430377,-155.35709596,0.00036019,4]
[329957087,1718868430400,-236.21354409,0.00036019,4]
[329957088,1718868430420,-1996.30250777,0.00036019,4]
[329957089,1718868430440,-258.35644608,0.00036019,4]
[329957090,1718868430460,-157.29837644,0.00036019,4]
[329957091,1718868430483,-586.72189482,0.00036019,4]
[329957092,1718868430504,-156.09516611,0.00036019,4]
[329957093,1718868430525,-253.91683289,0.00036019,4]
[329957094,1718868430547,-155.59801581,0.00036019,4]
[329957095,1718868430568,-277.24213866,0.00036019,4]
[329957096,1718868430590,-158.06373669,0.00036019,4]
[329957097,1718868430612,-297.88995541,0.0003602,4]
[329957098,1718868430633,-1135.28440781,0.0003602,2]
[329957099,1718868438106,-153.0,0.00031892,2]
[329957100,1718868438127,-585.3762787,0.00032029,2]
[329957101,1718868438151,-153.0,0.00032029,2]
[329957102,1718868438170,-306.0000001,0.00032029,2]
[329957103,1718868438194,-205.6359469,0.00032029,2]
[329957104,1718868438215,-153.0,0.00032029,2]
[329957105,1718868438240,-137.10172915,0.0003602,2]
[329957106,1718868445102,-14171.06740934,0.00026386,2]
[329957107,1718868445122,-151.28629382,0.00027533,2]
[329957108,1718868445142,-173.4480158,0.000292,2]
[329957109,1718868445161,-182.74752943,0.00036019,4]
[329957110,1718868445181,-40857.00789655,0.0003602,2]
[329957111,1718868445200,-282.45177482,0.00036021,4]
[329957112,1718868445219,-2644.3650935,0.00036021,4]
[329957113,1718868445241,-190.87920002,0.00036021,4]
[329957114,1718868445262,-156.49979751,0.00036021,4]
[329957115,1718868445281,-341.82435039,0.00036021,4]
[329957116,1718868445302,-312.29306091,0.00036021,4]
[329957117,1718868445321,-363.72124941,0.00036021,4]
[329957118,1718868445339,-1089.23978748,0.00036022,4]
[329957119,1718868445359,-1356.29031401,0.00036022,4]
[329957120,1718868445378,-193.21341165,0.00036022,4]
[329957121,1718868445397,-287.95947797,0.00036022,4]
[329957122,1718868445417,-215.808142,0.00036739,2]
[329957123,1718868445436,-620.3,0.00037959,15]
[329957124,1718868445455,-151.0,0.00037959,15]
[329957125,1718868445476,-1235.86371159,0.00037965,2]
[329957126,1718868445496,-1547.05707356,0.00038,120]
[329957127,1718868445514,-4920.93958216,0.000388,120]
[329957128,1718868445535,-502.732,0.00039753,2]
[329957129,1718868445554,-267.83413808,0.00039753,2]
[329957130,1718868448102,-1483.16586192,0.00039753,2]
[329957131,1718868448122,-808.88059479,0.0004,2]
[329957132,1718868448144,-615.30102124,0.0004,4]
[329957133,1718868448166,-163.700622,0.00040411,2]
[329957134,1718868448188,-150.78889555,0.00041978,2]
[329957135,1718868448211,-620.3,0.00042074,31]
[329957136,1718868448233,-151.0,0.00042074,31]
[329957137,1718868448254,-301.57779109,0.00042683,4]
[329957138,1718868448274,-1235.86371159,0.00042766,2]
[329957139,1718868448293,-273.0,0.0004285,45]
[329957140,1718868448315,-313.457465,0.00044,14]
[329957141,1718868448335,-151.28629383,0.0004437,30]
[329957142,1718868448356,-313.457465,0.00045,14]
[329957143,1718868448376,-313.457465,0.00045,14]
[329957144,1718868448395,-412.0,0.00045,90]
[329957145,1718868448417,-168.376648,0.00045005,30]
[329957146,1718868448439,-165.459908,0.00045005,30]
[329957147,1718868448460,-412.0,0.00045685,90]
[329957148,1718868448483,-168.376648,0.00045755,30]
[329957149,1718868448507,-165.459908,0.00045755,30]
[329957150,1718868448528,-313.457465,0.00046,14]
[329957151,1718868448548,-313.457465,0.00046,14]
[329957152,1718868448569,-620.3,0.0004619,31]
[329957153,1718868448588,-151.0,0.0004619,31]
[329957154,1718868448610,-168.376648,0.00046505,30]
[329957155,1718868448631,-165.459908,0.00046505,30]
[329957156,1718868448652,-500.0,0.00047,12]
[329957157,1718868448673,-313.457465,0.00047,14]
[329957158,1718868448694,-313.457464,0.00047,14]
[329957159,1718868448716,-1000.0,0.00047,47]
[329957160,1718868448738,-154.69480861,0.00047091,4]
[329957161,1718868448759,-5271.96670823,0.00047157,2]
[329957162,1718868448782,-168.376648,0.00047255,30]
[329957163,1718868448802,-165.459908,0.00047255,30]
[329957164,1718868448822,-1064.68395045,0.00047486,7]
[329957165,1718868448843,-1248.64144168,0.00047555,2]
[329957166,1718868562107,-777.98064916,0.00025422,2]
[329957321,1718868633846,-596.09454497,0.00025422,2]
[329957323,1718868633856,-153.86319651,0.00025522,2]
[329957325,1718868633865,-153.86319651,0.00025543,2]
[329957327,1718868633877,-153.86319651,0.00025544,2]
[329957328,1718868633886,-153.86319651,0.0002632,2]
[329957330,1718868633896,-300.0,0.00026573,2]
[329957332,1718868633906,-300.0,0.00026573,2]
[329957334,1718868633916,-17222.36437154,0.00026574,2]
[329957336,1718868633926,-153.86319651,0.00027,2]
[329957338,1718868633936,-160.0,0.00027381,30]
[329957340,1718868633946,-153.86319651,0.00029069,2]
[329957342,1718868633955,-361.8,0.00029905,15]
[329957344,1718868633965,-153.86319651,0.00029935,2]
[329957345,1718868633975,-153.86319651,0.00029995,2]
[329957347,1718868633984,-153.86319651,0.00030714,7]
[329957349,1718868633994,-157.93357175,0.00030935,7]
[329957351,1718868634003,-153.30180998,0.00031773,7]
[329957353,1718868634013,-153.86319651,0.00032203,7]
[329957355,1718868634022,-153.86319651,0.00032414,7]
[329957357,1718868634032,-157.93357175,0.00032453,7]
[329957358,1718868634041,-7438.489477,0.00033393,2]
[329957360,1718868634051,-152.73828051,0.00033679,7]
[329957362,1718868634060,-153.86319651,0.00033946,7]
[329957364,1718868634070,-361.8,0.00034004,15]
[329957366,1718868634079,-153.86319651,0.00034101,7]
[329957368,1718868634089,-153.86319651,0.00034115,7]
[329957370,1718868634098,-153.86319651,0.00034398,7]
[329957372,1718868634108,-153.86319651,0.00035325,7]
[329957373,1718868634120,-151.6268906,0.00035563,7]
[329957375,1718868634131,-153.86319651,0.00036133,7]
[329957377,1718868634140,-153.86319651,0.00037478,7]
[329957379,1718868634150,-361.8,0.00038104,15]
[329957381,1718868634159,-153.86319651,0.00038636,7]
[329957383,1718868634169,-153.86319651,0.00039285,7]
[329957385,1718868634178,-153.86319651,0.00039589,7]
[329957386,1718868634188,-153.86319651,0.0003967,7]
[329957388,1718868634199,-153.86319651,0.00041682,30]
[329957390,1718868634208,-153.86319651,0.00042186,30]
[329957392,1718868634218,-361.8,0.00042203,31]
[329957394,1718868634227,-156.7944703,0.00042774,30]
[329957396,1718868634237,-808.88059479,0.00044251,2]
[329957398,1718868634246,-255.88857148,0.00044251,4]
[329957399,1718868634255,-153.86319651,0.00044252,30]
[329957401,1718868634264,-153.86319651,0.000455,30]
[329957403,1718868634273,-157.93357175,0.00045612,30]
[329957405,1718868634283,-153.86319651,0.00045934,30]
[329957407,1718868634293,-361.8,0.00046303,31]
[329957409,1718868634302,-153.86319651,0.00046477,30]
[329957411,1718868634312,-153.86319651,0.00047198,30]
[329957413,1718868634321,-247.17274235,0.000475,2]
[329957414,1718868634330,-247.17274231,0.00047517,2]
[329957416,1718868634339,-247.17274231,0.00047534,2]
[329957418,1718868634349,-247.17274231,0.0004755,2]
[329957420,1718868634360,-648.31474915,0.00047555,2]
[329957422,1718868634372,-416.82703639,0.00047555,4]
[329957424,1718868634381,-1049.43,0.00047557,3]
[329957426,1718868634391,-2001.19,0.00047557,3]
[329957428,1718868634400,-1667.66,0.00047557,3]
[329957430,1718868634409,-341.69858388,0.00047562,30]
[329957431,1718868634419,-165.25916291,0.00047563,4]
[329957433,1718868634428,-1063.96349954,0.00047564,4]
[329957435,1718868634437,-205.51020909,0.00047564,120]
[329957437,1718868634447,-999.0,0.00047565,45]
[329957439,1718868634457,-999.0,0.00047565,45]
[329957441,1718868634466,-999.0,0.00047565,45]
[329957443,1718868634475,-999.0,0.00047565,45]
[329957445,1718868634484,-999.0,0.00047565,45]
[329957446,1718868634493,-999.0,0.00047565,45]
[329957448,1718868634503,-999.0,0.00047565,45]
[329957450,1718868634512,-999.0,0.00047565,45]
[329957452,1718868634521,-999.0,0.00047565,45]
[329957454,1718868634531,-999.0,0.00047565,45]
[329957456,1718868634540,-999.0,0.00047565,45]
[329957458,1718868634549,-999.0,0.00047565,45]
[329957459,1718868634558,-999.0,0.00047565,45]
[329957461,1718868634567,-999.0,0.00047565,45]
[329957463,1718868634577,-999.0,0.00047565,45]
[329957465,1718868634587,-999.0,0.00047565,45]
[329957467,1718868634596,-999.0,0.00047565,45]
[329957469,1718868634605,-999.0,0.00047565,45]
[329957471,1718868634615,-999.0,0.00047565,45]
[329957473,1718868634625,-1033.73768203,0.00047565,45]
[329957475,1718868634635,-88888.0,0.00047567,5]
[329957476,1718868634644,-247.17274231,0.00047567,2]
[329957478,1718868634653,-252.0,0.000476,24]
[329957480,1718868634667,-160.0,0.000476,36]
[329957482,1718868634677,-160.0,0.000476,36]
[329957484,1718868634686,-153.86319673,0.00047612,30]
[329957486,1718868634696,-202.40100934,0.00047665,4]
[329957488,1718868634706,-154.91052092,0.00047665,4]
[329957490,1718868634716,-469.87390822,0.00047665,4]
[329957492,1718868634726,-157.80731331,0.00047665,4]
[329957494,1718868634735,-8722.26870764,0.00047665,30]
[329957496,1718868634745,-313.67964054,0.00047666,120]
[329957498,1718868634754,-242.53798022,0.00047666,30]
[329957499,1718868634763,-4430.82366267,0.00047666,4]
[329957501,1718868634772,-127306.62678185,0.00047667,120]
[329957503,1718868634785,-826.65721377,0.00047667,120]
[329957528,1718868635035,-7527.58106515,0.00047667,120]
[329957942,1718868639738,-1371.40881746,0.00047557,3]
[329958068,1718868640874,-18.31118254,0.00047557,3]
[329958070,1718868640886,-57445.91223245,0.00047667,120]
[329958073,1718868640899,-313.457465,0.00047667,14]
[329958075,1718868640911,-313.457465,0.00047667,14]
[329958077,1718868640926,-153.9,0.00047667,14]
[329958080,1718868640940,-153.9,0.00047667,14]
[329958082,1718868640955,-151.0,0.00047667,14]
[329958084,1718868640969,-151.0,0.00047667,14]
[329958087,1718868640984,-151.0,0.00047667,14]
[329958089,1718868641000,-182.622112,0.00047667,14]
[329958092,1718868641012,-182.622112,0.00047667,14]
[329958094,1718868641023,-151.0,0.00047667,14]
[329958096,1718868641035,-151.0,0.00047667,14]
[329958098,1718868641046,-412.0,0.00047682,90]
[329958100,1718868641059,-625.58,0.00047945,120]
[329958102,1718868641072,-625.58,0.00047945,120]
[329958105,1718868641086,-625.58,0.00047945,120]
[329958107,1718868641098,-625.58,0.00047945,120]
[329958109,1718868641111,-625.58,0.00047945,120]
[329958112,1718868641129,-625.58,0.00047945,120]
[329958114,1718868641140,-625.58,0.00047945,120]
[329958116,1718868641153,-625.58,0.00047945,120]
[329958118,1718868641164,-625.58,0.00047945,120]
[329958120,1718868641176,-625.58,0.00047945,120]
[329958123,1718868641189,-625.58,0.00047945,120]
[329958125,1718868641201,-625.58,0.00047945,120]
[329958127,1718868641214,-625.58,0.00047945,120]
[329958129,1718868641225,-625.58,0.00047945,120]
[329958131,1718868641235,-625.58,0.00047945,120]
[329958134,1718868641247,-625.58,0.00047945,120]
[329958136,1718868641259,-625.58,0.00047945,120]
[329958138,1718868641269,-625.58,0.00047945,120]
[329958140,1718868641282,-625.58,0.00047945,120]
[329958142,1718868641294,-625.58,0.00047945,120]
[329958145,1718868641305,-625.58,0.00047945,120]
[329958147,1718868641316,-625.58,0.00047945,120]
[329958149,1718868641327,-625.58,0.00047945,120]
[329958151,1718868641338,-625.72981652,0.00047945,120]
[329958153,1718868641350,-2000.0,0.00048,32]
[329958155,1718868641361,-157.93357178,0.00048202,30]
[329958158,1718868641374,-313.457465,0.000483,14]
[329958160,1718868641385,-313.457465,0.000483,14]
[329958162,1718868641396,-504.0,0.000483,25]
[329958164,1718868641407,-504.0,0.000483,25]
[329958166,1718868641418,-153.9,0.000483,14]
[329958168,1718868641429,-153.9,0.000483,14]
[329958171,1718868641440,-152.422054,0.000483,14]
[329958173,1718868641451,-151.0,0.000483,14]
[329958175,1718868641464,-192.629395,0.000483,14]